bitfinex/quotes_BTCUSD_20241206
["timestamp","ask_amount","ask_price","bid_price","bid_amount"]
[1733488321437,0.00601976,98132.0,98131.0,0.31445667]
[1733488321662,0.00601976,98132.0,98131.0,0.31645667]
[1733488322367,0.00601976,98132.0,98131.0,0.11264767]
[1733488323008,0.00601976,98132.0,98131.0,0.11664767]
[1733488323229,0.00601976,98132.0,98131.0,0.11864767]
[1733488323799,0.00601976,98132.0,98131.0,0.11064767]
[1733488324245,0.00601976,98132.0,98131.0,0.11764767]
[1733488324526,0.00601976,98132.0,98131.0,0.11264767]
[1733488324749,0.00601976,98132.0,98131.0,0.11064767]
[1733488326074,0.00601976,98132.0,98131.0,0.11664767]
[1733488326283,0.00601976,98132.0,98131.0,0.11264767]
[1733488326525,0.01568683,98132.0,98131.0,0.11264767]
[1733488326757,0.01568683,98132.0,98131.0,0.11464767]
[1733488326989,0.01568683,98132.0,98131.0,0.11064767]
[1733488327210,0.01568683,98132.0,98131.0,0.11264767]
[1733488327423,0.01568683,98132.0,98131.0,0.11864767]
[1733488327652,0.01568683,98132.0,98131.0,0.11064767]
[1733488328100,0.01568683,98132.0,98131.0,0.11264767]
[1733488328833,0.01571487,98132.0,98131.0,0.11264767]
[1733488329044,0.00604418,98132.0,98131.0,0.11264767]
[1733488329254,0.00604418,98132.0,98131.0,0.11664767]
[1733488329483,0.00604418,98132.0,98131.0,0.11064767]
[1733488329690,0.00604418,98132.0,98131.0,0.11264767]
[1733488329896,0.01571544,98132.0,98131.0,0.11664767]
[1733488330122,0.00604418,98132.0,98131.0,0.11464767]
[1733488330328,0.0157156,98132.0,98131.0,0.11464767]
[1733488330541,0.0157156,98132.0,98131.0,0.11664767]
[1733488330751,0.0157156,98132.0,98131.0,0.11264767]
[1733488331182,0.00604418,98132.0,98131.0,0.11664767]
[1733488332525,0.00604418,98132.0,98131.0,0.11264767]
[1733488332728,0.00604418,98132.0,98131.0,0.11664767]
[1733488333195,0.00604418,98132.0,98131.0,0.11746662]
[1733488333645,0.04937837,98144.0,98132.0,0.203807]
[1733488333854,0.203765,98153.0,98131.0,0.11746662]
[1733488333855,0.01571878,98143.0,98140.0,0.203788]
[1733488334101,0.53287583,98251.0,98140.0,0.203788]
[1733488334102,0.00604568,98142.0,98141.0,0.22805042]
[1733488334312,0.04937837,98163.0,98142.0,0.0762]
[1733488334534,0.25311137,98168.0,98148.0,0.203773]
[1733488334763,0.00967028,98159.0,98149.0,0.09208111]
[1733488334991,0.25311937,98164.0,98149.0,0.1465178]
[1733488335202,0.25311937,98164.0,98149.0,0.34602007]
[1733488335449,0.04937837,98169.0,98149.0,0.22641252]
[1733488335653,0.00966374,98168.0,98149.0,0.34660952]
[1733488335900,0.04937837,98177.0,98149.0,0.68278999]
[1733488336100,0.00966383,98176.0,98149.0,0.68278999]
[1733488336309,0.203709,98179.0,98149.0,0.68278999]
[1733488336310,0.26879579,98175.0,98159.0,0.286151]
[1733488336517,0.00603559,98174.0,98159.0,0.38611236]
[1733488336731,0.00603559,98173.0,98159.0,0.38611236]
[1733488336940,0.203727,98171.0,98159.0,0.18236136]
[1733488337163,0.00603559,98170.0,98159.0,0.09226598]
[1733488337382,0.45681437,98175.0,98159.0,0.09226598]
[1733488337620,0.203726,98171.0,98159.0,0.09226598]
[1733488339471,0.203726,98171.0,98159.0,0.09326598]
[1733488339961,0.203722,98173.0,98159.0,0.09526598]
[1733488340179,0.203722,98173.0,98159.0,0.09626598]
[1733488341313,0.04937837,98175.0,98159.0,0.09626598]
[1733488341314,0.05024407,98160.0,98159.0,0.01284737]
[1733488341546,0.08166789,98160.0,98159.0,0.004]
[1733488342444,0.05626908,98160.0,98159.0,0.003]
[1733488342677,0.05626908,98160.0,98141.0,0.00101883]
[1733488342885,0.04937837,98152.0,98142.0,0.407571]
[1733488343104,0.04937837,98152.0,98142.0,0.21261679]
[1733488343318,0.04937837,98152.0,98142.0,0.00883179]
[1733488343530,0.04937837,98152.0,98140.0,0.0786]
[1733488343531,0.203767,98151.0,98141.0,0.00101883]
[1733488343768,0.203777,98147.0,98142.0,0.00883179]
[1733488343986,0.203777,98147.0,98140.0,0.0786]
[1733488344205,0.203767,98151.0,98143.0,0.00883179]
[1733488344446,0.203767,98151.0,98140.0,0.0786]
[1733488344447,0.203767,98151.0,98141.0,0.00101883]
[1733488344653,0.203767,98151.0,98144.0,0.00883179]
[1733488344893,0.203776,98147.0,98141.0,0.00101883]
[1733488345100,0.203776,98147.0,98145.0,0.00883179]
[1733488345308,0.203776,98147.0,98140.0,0.0786]
[1733488345740,0.203776,98147.0,98141.0,0.00883179]
[1733488346441,0.25314437,98152.0,98141.0,0.00883179]
[1733488346651,0.25314437,98152.0,98142.0,0.203786]
[1733488346884,0.0008657,98160.0,98143.0,0.10605037]
[1733488347113,0.0008657,98160.0,98151.0,0.279567]
[1733488347352,0.0008657,98160.0,98153.0,0.203763]
[1733488347628,0.0008657,98160.0,98151.0,0.279567]
[1733488347629,0.0008657,98160.0,98154.0,0.00883105]
[1733488347840,0.0008657,98160.0,98151.0,0.0758]
[1733488347841,0.2046147,98160.0,98152.0,0.00101871]
[1733488348067,0.203757,98156.0,98155.0,0.00883105]
[1733488348308,0.203757,98156.0,98151.0,0.0758]
[1733488348532,0.2046147,98160.0,98152.0,0.00883105]
[1733488349229,0.2066147,98160.0,98152.0,0.00883105]
[1733488349462,0.2086147,98160.0,98152.0,0.00883105]
[1733488349695,0.2046147,98160.0,98152.0,0.00883105]
[1733488349935,0.2056147,98160.0,98152.0,0.00883105]
[1733488350156,0.203757,98157.0,98152.0,0.00883105]
[1733488350625,0.06624921,98157.0,98152.0,0.00883105]
[1733488350857,0.25314137,98153.0,98152.0,0.00883105]
[1733488351083,0.203784,98143.0,98140.0,0.09128907]
[1733488351313,0.203792,98139.0,98138.0,0.09128907]
[1733488351530,0.203792,98139.0,98137.0,0.09128907]
[1733488351736,0.203794,98138.0,98137.0,0.09128907]
[1733488351950,0.203794,98138.0,98136.0,0.09128907]
[1733488352169,0.203789,98141.0,98134.0,0.16838907]
[1733488352376,0.203789,98141.0,98135.0,0.09128907]
[1733488352587,0.01990829,98157.0,98134.0,0.0771]
[1733488352588,0.203794,98138.0,98134.0,0.09128907]
[1733488352794,0.203794,98138.0,98132.0,0.13693361]
[1733488352795,0.04937837,98138.0,98135.0,0.09128907]
[1733488353043,0.04937837,98138.0,98132.0,0.13693361]
[1733488353044,0.203805,98133.0,98132.0,0.09128907]
[1733488353265,0.203805,98133.0,98131.0,0.02005915]
[1733488354817,0.25317437,98137.0,98131.0,0.02005915]
[1733488355031,0.04937837,98137.0,98132.0,0.203806]
[1733488355242,0.00602636,98145.0,98134.0,0.0789]
[1733488355465,0.00602636,98145.0,98135.0,0.05051889]
[1733488355704,0.00602636,98145.0,98139.0,0.20379]
[1733488356151,0.00602636,98145.0,98142.0,0.407569]
[1733488356362,0.00602636,98145.0,98144.0,0.282482]
[1733488356572,0.00602636,98145.0,98144.0,0.38279172]
[1733488356573,0.00802636,98145.0,98144.0,0.38279172]
[1733488356814,0.00802636,98145.0,98144.0,0.41940897]
[1733488357017,0.00602636,98145.0,98144.0,0.0787]
[1733488357272,0.00602636,98145.0,98144.0,0.17095966]
[1733488357508,0.00602636,98145.0,98144.0,0.07971878]
[1733488357925,0.00602636,98145.0,98144.0,0.08171878]
[1733488358341,0.00602636,98145.0,98144.0,0.0807]
[1733488358988,0.00602636,98145.0,98144.0,0.0857]
[1733488359199,0.00602636,98145.0,98144.0,0.16000404]
[1733488359429,0.00602636,98145.0,98144.0,0.07971883]
[1733488359630,0.00602636,98145.0,98144.0,0.18675037]
[1733488359846,0.00602636,98145.0,98144.0,0.19275037]
[1733488360494,0.0008657,98160.0,98145.0,0.20378]
[1733488360726,0.05024407,98160.0,98147.0,0.203775]
[1733488360939,0.05024407,98160.0,98150.0,0.203767]
[1733488361178,0.24952401,98159.0,98145.0,0.19624886]
[1733488361385,0.04937837,98148.0,98144.0,0.008]
[1733488361591,0.203776,98147.0,98144.0,0.008]
[1733488361823,0.04937837,98148.0,98144.0,0.008]
[1733488362035,0.04937837,98148.0,98144.0,0.002]
[1733488362452,0.04937837,98148.0,98145.0,0.00881758]
[1733488362915,0.203775,98147.0,98145.0,0.00881758]
[1733488363121,0.203775,98147.0,98144.0,0.002]
[1733488363122,0.407551,98147.0,98144.0,0.002]
[1733488363330,0.203775,98147.0,98144.0,0.002]
[1733488363535,0.203775,98147.0,98136.0,0.10503154]
[1733488363757,0.203775,98147.0,98137.0,0.00881758]
[1733488363975,0.203775,98147.0,98145.0,0.002]
[1733488364186,0.04937837,98148.0,98137.0,0.20481485]
[1733488364390,0.04937837,98148.0,98145.0,0.001]
[1733488365706,0.04937837,98148.0,98144.0,0.003]
[1733488365919,0.04937837,98148.0,98145.0,0.001]
[1733488366353,0.04937837,98148.0,98137.0,0.203796]
[1733488366598,0.04937837,98148.0,98145.0,0.004]
[1733488367012,0.04937837,98148.0,98145.0,0.001]
[1733488367235,0.04937837,98148.0,98139.0,0.203792]
[1733488367467,0.04937837,98148.0,98140.0,0.00101884]
[1733488367703,0.04937837,98148.0,98145.0,0.002]
[1733488368369,0.04937837,98148.0,98146.0,0.00881758]
[1733488368779,0.04937837,98148.0,98140.0,0.00101884]
[1733488369013,0.04937837,98148.0,98141.0,0.00881758]
[1733488369641,0.04937837,98148.0,98145.0,0.001]
[1733488370059,0.0008657,98150.0,98146.0,0.00881758]
[1733488370269,0.0008657,98150.0,98148.0,0.0803]
[1733488370270,0.00603519,98149.0,98148.0,0.0803]
[1733488370506,0.0008657,98150.0,98149.0,0.203771]
[1733488370931,0.0008657,98150.0,98149.0,0.21259725]
[1733488371356,0.0008657,98150.0,98149.0,0.00882625]
[1733488371727,0.0008657,98150.0,98149.0,0.00982625]
[1733488371728,0.07564408,98150.0,98149.0,0.00982625]
[1733488371928,0.08168062,98150.0,98149.0,0.00982625]
[1733488372293,0.05628061,98150.0,98149.0,0.001]
[1733488372752,0.00690224,98150.0,98149.0,0.001]
[1733488372967,0.0008657,98150.0,98149.0,0.08721459]
[1733488373815,0.0008657,98150.0,98149.0,0.08823333]
[1733488374664,0.0008657,98150.0,98149.0,0.56217703]
[1733488374904,0.0008657,98150.0,98149.0,0.42421657]
[1733488375130,0.0008657,98150.0,98149.0,0.22415611]
[1733488375352,0.0008657,98150.0,98149.0,0.08721459]
[1733488375552,0.0008657,98150.0,98149.0,0.08823333]
[1733488376172,0.0008657,98150.0,98149.0,0.56224731]
[1733488376383,0.0008657,98150.0,98149.0,0.56125119]
[1733488376635,0.0008657,98150.0,98149.0,0.22415611]
[1733488377266,0.0008657,98150.0,98149.0,0.4243217]
[1733488377475,0.0008657,98150.0,98149.0,0.52935324]
[1733488377678,0.0008657,98150.0,98149.0,0.81460061]
[1733488377957,0.0008657,98150.0,98149.0,0.86024785]
[1733488378172,0.0008657,98150.0,98149.0,0.63201165]
[1733488378585,0.0008657,98150.0,98149.0,0.63101165]
[1733488378811,0.0008657,98150.0,98149.0,0.85933328]
[1733488379017,0.0008657,98150.0,98149.0,0.63801165]
[1733488379478,0.0008657,98150.0,98149.0,0.63799481]
[1733488379713,0.0008657,98160.0,98159.0,0.203751]
[1733488379920,0.0008657,98160.0,98159.0,0.2648775]
[1733488380153,0.0008657,98160.0,98159.0,0.27366628]
[1733488380353,0.0008657,98160.0,98159.0,0.61070602]
[1733488380557,0.0008657,98160.0,98159.0,0.54927952]
[1733488380782,0.0008657,98160.0,98159.0,0.55027952]
[1733488381230,0.0008657,98160.0,98159.0,0.55327952]
[1733488381452,0.0008657,98160.0,98159.0,0.55330343]
[1733488381913,0.0008657,98160.0,98159.0,0.48680879]
[1733488382140,0.0008657,98160.0,98159.0,0.34985243]
[1733488382362,0.0008657,98160.0,98159.0,0.48680897]
[1733488382590,0.0008657,98160.0,98159.0,0.34985243]
[1733488383739,0.0008657,98160.0,98159.0,0.45488397]
[1733488385813,0.0008657,98160.0,98159.0,0.11782032]
[1733488386053,0.0008657,98160.0,98159.0,0.45567079]
[1733488386280,0.0008657,98160.0,98159.0,0.45465218]
[1733488387641,0.0008657,98160.0,98159.0,0.5915019]
[1733488388109,0.0008657,98160.0,98159.0,0.59140394]
[1733488388323,0.0008657,98160.0,98159.0,0.25465712]
[1733488388540,0.0008657,98160.0,98159.0,0.11782032]
[1733488388767,0.0008657,98160.0,98159.0,0.4555675]
[1733488388993,0.0008657,98160.0,98159.0,0.63699796]
[1733488389205,0.0008657,98160.0,98159.0,0.45454889]
[1733488389484,0.0008657,98160.0,98159.0,0.11782032]
[1733488389702,0.0008657,98160.0,98159.0,0.12780053]
[1733488390156,0.0008657,98160.0,98159.0,0.26458871]
[1733488390378,0.0008657,98160.0,98159.0,0.2635701]
[1733488390832,0.0008657,98160.0,98159.0,0.12678192]
[1733488391043,0.0008657,98160.0,98159.0,0.26458871]
[1733488391270,0.0008657,98160.0,98159.0,0.12678192]
[1733488391498,0.25399207,98160.0,98159.0,0.01278878]
[1733488392233,0.25399207,98160.0,98159.0,0.004]
[1733488397659,0.25997797,98160.0,98159.0,0.004]
[1733488400020,0.26955674,98160.0,98159.0,0.004]
[1733488401144,0.26955674,98160.0,98159.0,0.003]
[1733488401369,0.27155674,98160.0,98159.0,0.003]
[1733488401601,0.06780874,98160.0,98150.0,0.0017312]
[1733488401814,0.203767,98151.0,98150.0,0.0017312]
[1733488402042,0.25913127,98151.0,98150.0,0.0017312]
[1733488402706,0.0059859,98151.0,98150.0,0.0017312]
[1733488402946,0.0018657,98160.0,98151.0,0.1244]
[1733488403198,0.0018657,98160.0,98156.0,0.203755]
[1733488403439,0.0018657,98160.0,98157.0,0.00101866]
[1733488403671,0.0018657,98160.0,98158.0,0.00101867]
[1733488403910,0.0018657,98160.0,98153.0,0.09119531]
[1733488404153,0.0008657,98160.0,98159.0,0.00882516]
[1733488404398,0.0008657,98160.0,98159.0,0.1060502]
[1733488404631,0.0008657,98160.0,98159.0,0.29917028]
[1733488404841,0.0008657,98160.0,98159.0,0.72999493]
[1733488405082,0.203683,98192.0,98159.0,0.72999493]
[1733488405083,0.04937837,98187.0,98174.0,0.203719]
[1733488405303,0.04937837,98187.0,98177.0,0.09110012]
[1733488405509,0.04937837,98187.0,98179.0,0.203709]
[1733488405717,0.04937837,98187.0,98179.0,0.30874054]
[1733488405921,0.04937837,98187.0,98179.0,0.39984066]
[1733488406133,0.04937837,98187.0,98179.0,0.40861658]
[1733488406342,0.0018656,98180.0,98179.0,0.40861658]
[1733488406578,0.00203965,98180.0,98179.0,0.42241138]
[1733488406786,0.00203965,98180.0,98179.0,0.5135115]
[1733488407022,0.00303965,98180.0,98179.0,0.5135115]
[1733488407231,0.00303965,98180.0,98179.0,0.31751646]
[1733488407470,0.00203965,98180.0,98179.0,0.31751646]
[1733488407904,0.00203965,98180.0,98179.0,0.31951646]
[1733488408115,0.00203965,98180.0,98179.0,0.11580746]
[1733488408336,0.00103965,98180.0,98179.0,0.11380746]
[1733488408544,0.00103965,98180.0,98179.0,0.11980746]
[1733488409868,0.00103965,98180.0,98179.0,0.01477592]
[1733488410138,0.02151302,98180.0,98179.0,0.01477592]
[1733488410361,0.02151302,98180.0,98179.0,0.006]
[1733488410362,0.07089139,98180.0,98179.0,0.006]
[1733488411020,0.07089139,98180.0,98179.0,0.004]
[1733488411236,0.07789066,98180.0,98179.0,0.006]
[1733488411691,0.07789066,98180.0,98179.0,0.004]
[1733488411907,0.611127,98179.0,98158.0,0.09104264]
[1733488412122,0.04937837,98169.0,98158.0,0.09104264]
[1733488412349,0.04937837,98167.0,98159.0,0.00875964]
[1733488412608,0.203741,98164.0,98159.0,0.00875964]
[1733488412828,0.04937837,98167.0,98159.0,0.00875964]
[1733488413262,0.04937837,98167.0,98157.0,0.20477167]
[1733488413263,0.04937837,98167.0,98158.0,0.09108652]
[1733488413474,0.04937837,98167.0,98160.0,0.00875964]
[1733488413724,0.203737,98166.0,98159.0,0.001]
[1733488413930,0.203737,98166.0,98161.0,0.00875964]
[1733488414135,0.203737,98166.0,98159.0,0.09208652]
[1733488414340,0.203737,98166.0,98162.0,0.00875964]
[1733488414554,0.203737,98166.0,98159.0,0.09208652]
[1733488414765,0.203737,98166.0,98163.0,0.00875964]
[1733488414969,0.203737,98166.0,98159.0,0.09208652]
[1733488415199,0.203737,98166.0,98164.0,0.00875964]
[1733488415431,0.203737,98166.0,98159.0,0.19698144]
[1733488415658,0.203737,98166.0,98159.0,0.10489492]
[1733488415874,0.203737,98166.0,98160.0,0.00875964]
[1733488416102,0.203737,98166.0,98160.0,0.00975964]
[1733488416320,0.203737,98166.0,98160.0,0.00875964]
[1733488417399,0.203745,98162.0,98160.0,0.002]
[1733488417603,0.203745,98162.0,98161.0,0.00871767]
[1733488418949,0.203745,98162.0,98161.0,0.00971767]
[1733488419528,0.203745,98162.0,98161.0,0.01371767]
[1733488420739,0.25312337,98162.0,98161.0,0.01371767]
[1733488420939,0.25312337,98162.0,98161.0,0.005]
[1733488421810,0.25312337,98162.0,98161.0,0.004]
[1733488422026,0.29880951,98162.0,98161.0,0.005]
[1733488422468,0.29880951,98162.0,98161.0,0.001]
[1733488422469,0.30478675,98162.0,98161.0,0.001]
[1733488422931,0.30478675,98162.0,98161.0,0.004]
[1733488423158,0.30478675,98162.0,98161.0,0.001]
[1733488423375,0.203767,98151.0,98150.0,0.0017312]
[1733488423580,0.25314537,98151.0,98150.0,0.0017312]
[1733488425979,0.25314537,98151.0,98150.0,0.0057312]
[1733488426182,0.25314537,98151.0,98150.0,0.0017312]
[1733488426649,0.25314537,98151.0,98150.0,0.0077312]
[1733488426865,0.25314537,98151.0,98150.0,0.0037312]
[1733488427063,0.25314537,98151.0,98150.0,0.0017312]
[1733488427267,0.25314537,98151.0,98150.0,0.0077312]
[1733488436038,0.25314537,98151.0,98150.0,0.0057312]
[1733488436245,0.25314537,98151.0,98150.0,0.0017312]
[1733488436449,0.25314537,98151.0,98150.0,0.0027312]
[1733488436677,0.04937837,98150.0,98129.0,0.15]
[1733488436930,0.203775,98148.0,98136.0,0.203796]
[1733488437787,0.203775,98148.0,98137.0,0.0087812]
[1733488438019,0.203775,98148.0,98137.0,0.00884035]
[1733488439488,0.203781,98145.0,98137.0,0.00884035]
[1733488440562,0.203781,98145.0,98137.0,0.00984035]
[1733488440823,0.203781,98145.0,98137.0,0.01184035]
[1733488441030,0.203781,98145.0,98137.0,0.00664505]
[1733488441272,0.203781,98145.0,98137.0,0.01064505]
[1733488441724,0.203788,98141.0,98137.0,0.01064505]
[1733488441944,0.203788,98141.0,98137.0,0.01284035]
[1733488442211,0.203792,98139.0,98137.0,0.01284035]
[1733488442620,0.203792,98139.0,98137.0,0.00305915]
[1733488442822,0.203792,98139.0,98137.0,0.00230923]
[1733488443047,0.203792,98139.0,98137.0,0.001]
[1733488443484,0.203794,98138.0,98137.0,0.005]
[1733488443704,0.203794,98138.0,98137.0,0.003]
[1733488443916,0.0203788,98140.0,98137.0,0.003]
[1733488444128,0.203782,98144.0,98137.0,0.003]
[1733488444348,0.203791,98140.0,98137.0,0.006]
[1733488444563,0.203791,98140.0,98137.0,0.003]
[1733488444983,0.203791,98140.0,98137.0,0.01]
[1733488445796,0.203791,98140.0,98137.0,0.007]
[1733488446256,0.203791,98140.0,98137.0,0.002]
[1733488446489,0.203782,98144.0,98137.0,0.002]
[1733488446709,0.203782,98144.0,98138.0,0.0066137]
[1733488447142,0.203782,98144.0,98137.0,0.002]
[1733488447376,0.29393637,98148.0,98137.0,0.004]
[1733488447377,0.20379,98141.0,98137.0,0.004]
[1733488447585,0.20379,98141.0,98130.0,0.10676154]
[1733488447794,0.203791,98140.0,98137.0,0.001]
[1733488448009,0.203791,98140.0,98138.0,0.002]
[1733488448237,0.203791,98140.0,98137.0,0.001]
[1733488449271,0.203791,98140.0,98130.0,0.10676154]
[1733488449472,0.203791,98140.0,98137.0,0.001]
[1733488449696,0.203794,98138.0,98137.0,0.004]
[1733488449984,0.203794,98138.0,98131.0,0.00662394]
[1733488449985,0.203794,98138.0,98130.0,0.10676154]
[1733488450212,0.203794,98138.0,98137.0,0.002]
[1733488450434,0.203794,98138.0,98137.0,0.006]
[1733488450658,0.203794,98138.0,98137.0,0.002]
[1733488450888,0.203794,98138.0,98130.0,0.10676154]
[1733488451121,0.203794,98138.0,98137.0,0.007]
[1733488451338,0.203794,98138.0,98137.0,0.002]
[1733488451557,0.203794,98138.0,98137.0,0.007]
[1733488452185,0.203794,98138.0,98137.0,0.005]
[1733488452613,0.203794,98138.0,98137.0,0.007]
[1733488453028,0.203794,98138.0,98137.0,0.002]
[1733488453476,0.39670897,98138.0,98137.0,0.002]
[1733488453784,0.40270416,98138.0,98137.0,0.002]
[1733488454213,0.40270416,98138.0,98137.0,0.007]
[1733488454455,0.40270416,98138.0,98137.0,0.002]
[1733488454886,0.34156756,98138.0,98137.0,0.002]
[1733488455363,0.13777356,98138.0,98130.0,0.00173]
[1733488455610,0.203809,98131.0,98130.0,0.00173]
[1733488457252,0.203809,98131.0,98130.0,0.00573]
[1733488457681,0.203809,98131.0,98130.0,0.00273]
[1733488458099,0.203809,98131.0,98130.0,0.00573]
[1733488458532,0.203809,98131.0,98130.0,0.00473]
[1733488458752,0.203809,98131.0,98130.0,0.00573]
[1733488459436,0.203809,98131.0,98130.0,0.00473]
[1733488459886,0.203809,98131.0,98130.0,0.00273]
[1733488460527,0.203809,98131.0,98130.0,0.00573]
[1733488463411,0.203809,98131.0,98130.0,0.01458204]
[1733488463624,0.203809,98131.0,98130.0,0.00573]
[1733488463832,0.203809,98131.0,98130.0,0.01458204]
[1733488464017,0.203809,98131.0,98130.0,0.00573]
[1733488464212,0.203809,98131.0,98130.0,0.01458204]
[1733488464412,0.203809,98131.0,98130.0,0.00573]
[1733488464627,0.04937837,98143.0,98130.0,0.11961358]
[1733488464835,0.0507652,98150.0,98132.0,0.203807]
[1733488464836,0.00599107,98142.0,98132.0,0.203807]
[1733488465061,0.04937837,98147.0,98131.0,0.10503154]
[1733488465062,0.04937837,98147.0,98136.0,0.09128591]
[1733488465271,0.04937837,98147.0,98133.0,0.64589215]
[1733488465272,0.23692992,98147.0,98140.0,0.09129147]
[1733488465496,0.23692992,98147.0,98133.0,0.30883654]
[1733488465497,0.03315292,98147.0,98137.0,0.10016133]
[1733488465719,0.03315292,98147.0,98133.0,0.10503154]
[1733488465720,0.002,98143.0,98138.0,0.29508447]
[1733488465916,0.002,98143.0,98138.0,0.10016133]
[1733488466378,0.03315292,98148.0,98138.0,0.00886986]
[1733488466379,0.20977766,98142.0,98138.0,0.00886986]
[1733488466581,0.203786,98142.0,98138.0,0.00886986]
[1733488466804,0.203786,98142.0,98134.0,0.09129147]
[1733488467017,0.203786,98142.0,98141.0,0.1291]
[1733488467018,0.002,98142.0,98141.0,0.1291]
[1733488467206,0.000865,98160.0,98149.0,0.482871]
[1733488467410,0.000865,98160.0,98159.0,0.432151]
[1733488467623,0.0008656,98170.0,98169.0,0.35373]
[1733488467828,0.0008656,98170.0,98169.0,0.92434807]
[1733488468103,6.2e-07,98170.0,98169.0,0.94997875]
[1733488468300,0.02065476,98219.0,98188.0,0.20369]
[1733488468514,0.02065476,98219.0,98208.0,0.09098966]
[1733488468748,0.03315292,98229.0,98215.0,0.203632]
[1733488468749,0.004076,98221.0,98215.0,0.203632]
[1733488469019,0.0782,98246.0,98211.0,0.203642]
[1733488469020,0.03315292,98234.0,98221.0,0.20362]
[1733488469239,0.03315292,98228.0,98223.0,0.203618]
[1733488469453,0.03315292,98228.0,98223.0,0.10503154]
[1733488469863,0.03315292,98228.0,98224.0,0.00863598]
[1733488470927,0.03315292,98228.0,98214.0,0.203636]
[1733488471104,0.03315292,98228.0,98225.0,0.00863598]
[1733488471355,0.03315292,98228.0,98215.0,0.10503154]
[1733488471760,0.03315292,98228.0,98216.0,0.00863598]
[1733488472405,0.00144567,98230.0,98216.0,0.00863598]
[1733488472628,0.03315292,98228.0,98216.0,0.00863598]
[1733488474147,0.03315292,98228.0,98217.0,0.26768665]
[1733488474352,0.00144567,98230.0,98221.0,0.20362]
[1733488474560,0.00144567,98230.0,98225.0,0.203613]
[1733488474789,0.00144567,98230.0,98222.0,0.00863598]
[1733488474790,0.00144567,98230.0,98227.0,0.203609]
[1733488474994,0.00144567,98230.0,98229.0,0.203605]
[1733488475165,0.00144567,98230.0,98229.0,0.30863654]
[1733488475576,0.00144567,98230.0,98229.0,0.317235]
[1733488477873,0.00144567,98230.0,98229.0,0.326235]
[1733488478078,0.00144567,98230.0,98229.0,0.41070379]
[1733488482109,0.03315292,98246.0,98229.0,0.41070379]
[1733488482110,0.03315292,98246.0,98229.0,0.61430879]
[1733488482314,0.00103878,98240.0,98230.0,0.22465253]
[1733488482529,0.00103878,98240.0,98238.0,0.203585]
[1733488483074,0.00103878,98240.0,98239.0,0.00845678]
[1733488483376,0.00103878,98240.0,98239.0,0.02966096]
[1733488483581,0.00103878,98240.0,98239.0,0.00845678]
[1733488483931,0.00103878,98240.0,98236.0,0.20359]
[1733488484143,0.00103878,98240.0,98238.0,0.203587]
[1733488484372,0.00103878,98240.0,98239.0,0.10503154]
[1733488484718,0.0008651,98250.0,98240.0,0.610749]
[1733488484921,0.0008651,98250.0,98249.0,0.203564]
[1733488485349,0.0008651,98250.0,98249.0,0.00845505]
[1733488485978,0.0008651,98250.0,98245.0,0.203571]
[1733488486186,0.0008651,98250.0,98249.0,0.00845505]
[1733488486395,0.0008651,98250.0,98249.0,0.02120261]
[1733488486618,0.0008651,98250.0,98249.0,0.02965766]
[1733488487045,0.0008651,98250.0,98249.0,0.00845505]
[1733488487253,0.03401802,98250.0,98249.0,0.00845505]
[1733488487483,0.03401802,98250.0,98249.0,0.01045505]
[1733488487712,0.03401802,98250.0,98249.0,0.007]
[1733488488170,0.03401802,98250.0,98229.0,0.203605]
[1733488488374,0.03315292,98247.0,98230.0,0.1466841]
[1733488488577,0.03315292,98247.0,98230.0,0.15512108]
[1733488489002,0.03315292,98247.0,98231.0,0.203601]
[1733488489233,0.03315292,98247.0,98232.0,0.10503154]
[1733488489431,0.03315292,98247.0,98232.0,0.11348172]
[1733488489637,0.00127231,98246.0,98232.0,0.11348172]
[1733488489846,0.00127231,98246.0,98232.0,0.14493646]
[1733488490051,0.00127231,98246.0,98232.0,0.11348172]
[1733488490261,0.0008651,98250.0,98232.0,0.11348172]
[1733488490479,0.0008651,98250.0,98240.0,0.32320199]
[1733488490690,0.0008651,98250.0,98241.0,0.10503154]
[1733488490895,0.0008651,98250.0,98241.0,0.11346979]
[1733488491275,0.0008651,98250.0,98242.0,0.06402688]
[1733488491484,0.0008651,98250.0,98243.0,0.10503154]
[1733488491983,0.0008651,98250.0,98244.0,0.00843825]
[1733488494197,0.0008651,98250.0,98244.0,0.00943825]
[1733488494337,0.0008651,98250.0,98244.0,0.01143825]
[1733488494535,0.0008651,98250.0,98245.0,0.05876597]
[1733488494971,0.0008651,98250.0,98246.0,0.00843825]
[1733488495771,0.203564,98249.0,98246.0,0.00843825]
[1733488496250,0.0008651,98250.0,98246.0,0.00843825]
[1733488496484,0.0008651,98250.0,98244.0,0.002]
[1733488496688,0.0008651,98250.0,98243.0,0.10503154]
[1733488496689,0.203564,98249.0,98247.0,0.00842549]
[1733488496913,0.203564,98249.0,98243.0,0.10503154]
[1733488497128,0.03315292,98254.0,98248.0,0.00842549]
[1733488497341,0.20952329,98253.0,98245.0,0.001]
[1733488497547,0.203569,98247.0,98246.0,0.01179634]
[1733488498293,0.2095397,98247.0,98246.0,0.01179634]
[1733488498875,0.2095397,98247.0,98246.0,0.01479634]
[1733488500234,0.2095397,98247.0,98246.0,0.01179634]
[1733488500436,0.2095397,98247.0,98246.0,0.02079634]
[1733488501074,0.2095397,98247.0,98246.0,0.02279634]
[1733488501308,0.2095397,98247.0,98246.0,0.01379634]
[1733488501708,0.2095397,98247.0,98246.0,0.01879634]
[1733488502141,0.2095397,98247.0,98246.0,0.01379634]
[1733488502564,0.2095397,98247.0,98246.0,0.01879634]
[1733488503005,0.24269262,98247.0,98246.0,0.007]
[1733488503242,0.25225097,98247.0,98246.0,0.005]
[1733488503669,0.29745097,98247.0,98246.0,0.007]
[1733488504023,0.203601,98231.0,98230.0,0.0017286]
[1733488504234,0.2095717,98231.0,98230.0,0.0017286]
[1733488505057,0.0059707,98231.0,98230.0,0.0017286]
[1733488505631,0.0059707,98231.0,98230.0,0.0097286]
[1733488505835,0.0059707,98231.0,98230.0,0.0017286]
[1733488506171,0.0155313,98231.0,98230.0,0.0057286]
[1733488506591,0.04868422,98231.0,98230.0,0.0057286]
[1733488506780,0.04868422,98231.0,98230.0,0.0017286]
[1733488507220,0.04868422,98231.0,98230.0,0.0057286]
[1733488507427,0.04868422,98231.0,98230.0,0.0137286]
[1733488507630,0.04868422,98231.0,98230.0,0.0057286]
[1733488507996,0.04868422,98231.0,98230.0,0.0137286]
[1733488508461,0.04868422,98231.0,98230.0,0.0057286]
[1733488508604,0.12778422,98231.0,98230.0,0.0137286]